[Event "Late-Titled-Tuesday-Blitz-October-24-2023"]
[Site "Chess.com"]
[Date "2023.10.24"]
[Round "2"]
[White "midedu"]
[Black "santosalberto1987"]
[Result "0-1"]
[WhiteElo "2050"]
[BlackElo "2427"]
[TimeControl "180+1"]
[EndTime "14:17:50 PDT"]
[Termination "santosalberto1987 won on time"]

1. e4 {[%clk 0:02:57.8]} 1... e6 {[%clk 0:02:50.4]} 2. d3 {[%clk 0:02:56.8]}
2... d5 {[%clk 0:02:50.3]} 3. Nd2 {[%clk 0:02:57.3]} 3... Nf6 {[%clk 0:02:50.4]}
4. Ngf3 {[%clk 0:02:57.4]} 4... Nc6 {[%clk 0:02:50.4]} 5. g3 {[%clk 0:02:57.5]}
5... dxe4 {[%clk 0:02:50.4]} 6. dxe4 {[%clk 0:02:57.2]} 6... e5 {[%clk
0:02:50.5]} 7. Bg2 {[%clk 0:02:55.6]} 7... Bc5 {[%clk 0:02:51]} 8. O-O {[%clk
0:02:54.3]} 8... O-O {[%clk 0:02:51.4]} 9. h3 {[%clk 0:02:54.6]} 9... a5 {[%clk
0:02:51]} 10. c3 {[%clk 0:02:47]} 10... b6 {[%clk 0:02:50.6]} 11. Re1 {[%clk
0:02:44.5]} 11... Ba6 {[%clk 0:02:49.2]} 12. Bf1 {[%clk 0:02:21.3]} 12... Bxf1
{[%clk 0:02:48]} 13. Kxf1 {[%clk 0:02:20.4]} 13... Qd3+ {[%clk 0:02:47.4]} 14.
Qe2 {[%clk 0:02:19.7]} 14... Rad8 {[%clk 0:02:46.3]} 15. Kg2 {[%clk 0:02:08.3]}
15... Qxe2 {[%clk 0:02:41.8]} 16. Rxe2 {[%clk 0:02:07.9]} 16... Rd3 {[%clk
0:02:42]} 17. Nc4 {[%clk 0:02:03.2]} 17... Re8 {[%clk 0:02:22.2]} 18. Be3 {[%clk
0:02:00.6]} 18... Nd7 {[%clk 0:02:19.2]} 19. a3 {[%clk 0:01:52.9]} 19... b5
{[%clk 0:02:10.9]} 20. Bxc5 {[%clk 0:01:37.7]} 20... Nxc5 {[%clk 0:02:10.9]} 21.
Ncd2 {[%clk 0:01:36.7]} 21... a4 {[%clk 0:02:08.6]} 22. Rae1 {[%clk 0:01:33.6]}
22... Red8 {[%clk 0:02:05.6]} 23. Nf1 {[%clk 0:01:31.2]} 23... f6 {[%clk
0:02:04.4]} 24. N3h2 {[%clk 0:01:07.5]} 24... Na5 {[%clk 0:02:03.1]} 25. h4
{[%clk 0:00:51]} 25... Nc4 {[%clk 0:02:02.3]} 26. f4 {[%clk 0:00:45.5]} 26...
Rd1 {[%clk 0:02:00.6]} 27. Rxd1 {[%clk 0:00:43.4]} 27... Rxd1 {[%clk 0:02:00.2]}
28. Nf3 {[%clk 0:00:34.4]} 28... Rb1 {[%clk 0:01:58]} 29. fxe5 {[%clk
0:00:33.3]} 29... fxe5 {[%clk 0:01:57.7]} 30. g4 {[%clk 0:00:17.9]} 30... Nd3
{[%clk 0:01:57.3]} 31. Kg3 {[%clk 0:00:16.9]} 31... Rxb2 {[%clk 0:01:56]} 32.
Rxb2 {[%clk 0:00:15.4]} 32... Ndxb2 {[%clk 0:01:56.9]} 33. g5 {[%clk 0:00:14]}
33... Nd3 {[%clk 0:01:53.6]} 34. h5 {[%clk 0:00:13.1]} 34... Nxa3 {[%clk
0:01:53.1]} 35. Kg4 {[%clk 0:00:12.4]} 35... Nc4 {[%clk 0:01:52.1]} 36. N1d2
{[%clk 0:00:09.9]} 36... a3 {[%clk 0:01:51.9]} 37. Nb3 {[%clk 0:00:09.4]} 37...
a2 {[%clk 0:01:52]} 38. Kf5 {[%clk 0:00:09.7]} 38... Kf7 {[%clk 0:01:48]} 39.
g6+ {[%clk 0:00:09.6]} 39... hxg6+ {[%clk 0:01:48.9]} 40. hxg6+ {[%clk
0:00:09.9]} 40... Ke7 {[%clk 0:01:49.5]} 41. Ng5 {[%clk 0:00:07.2]} 41... Nc1
{[%clk 0:01:44.9]} 42. Na1 {[%clk 0:00:06.3]} 42... Nd2 {[%clk 0:01:45.2]} 43.
Ne6 {[%clk 0:00:04.5]} 43... Ncb3 {[%clk 0:01:40.2]} 44. Nc2 {[%clk 0:00:03.1]}
44... Nf1 {[%clk 0:01:33.4]} 0-1

[Event "Late-Titled-Tuesday-Blitz-October-24-2023"]
[Site "Chess.com"]
[Date "2023.10.24"]
[Round "2"]
[White "tdf98pantani"]
[Black "MAGMAchess02"]
[Result "1-0"]
[WhiteElo "2654"]
[BlackElo "2313"]
[TimeControl "180+1"]
[EndTime "14:18:01 PDT"]
[Termination "tdf98pantani won on time"]

1. Nf3 {[%clk 0:02:53.7]} 1... c5 {[%clk 0:02:57.7]} 2. e4 {[%clk 0:02:53.5]}
2... Nc6 {[%clk 0:02:56.8]} 3. d4 {[%clk 0:02:53.6]} 3... cxd4 {[%clk
0:02:56.8]} 4. Nxd4 {[%clk 0:02:54.2]} 4... Qc7 {[%clk 0:02:57.2]} 5. Nc3 {[%clk
0:02:53.8]} 5... e6 {[%clk 0:02:57.5]} 6. Be3 {[%clk 0:02:53.4]} 6... a6 {[%clk
0:02:57.6]} 7. Bd3 {[%clk 0:02:53.6]} 7... Nf6 {[%clk 0:02:56.9]} 8. O-O {[%clk
0:02:53.7]} 8... b5 {[%clk 0:02:57.3]} 9. Nxc6 {[%clk 0:02:53.2]} 9... dxc6
{[%clk 0:02:56.3]} 10. f4 {[%clk 0:02:52.4]} 10... Bb7 {[%clk 0:02:53.5]} 11. e5
{[%clk 0:02:52.4]} 11... Nd5 {[%clk 0:02:53.5]} 12. Nxd5 {[%clk 0:02:52.7]}
12... cxd5 {[%clk 0:02:53.1]} 13. Bd4 {[%clk 0:02:52.9]} 13... Bc5 {[%clk
0:02:41.7]} 14. c3 {[%clk 0:02:53.2]} 14... g6 {[%clk 0:02:41.9]} 15. Qd2 {[%clk
0:02:48.8]} 15... Qb6 {[%clk 0:02:35.4]} 16. Qe3 {[%clk 0:02:47.7]} 16... Rc8
{[%clk 0:02:30.9]} 17. h3 {[%clk 0:02:30.8]} 17... a5 {[%clk 0:02:21.2]} 18. a3
{[%clk 0:02:25.3]} 18... b4 {[%clk 0:02:07.3]} 19. axb4 {[%clk 0:02:23.6]} 19...
axb4 {[%clk 0:02:07.2]} 20. Kh2 {[%clk 0:02:19.1]} 20... O-O {[%clk 0:01:52.2]}
21. g4 {[%clk 0:02:17.9]} 21... bxc3 {[%clk 0:01:42.1]} 22. bxc3 {[%clk
0:02:17.3]} 22... Bxd4 {[%clk 0:01:37.2]} 23. cxd4 {[%clk 0:02:16.9]} 23... Rc3
{[%clk 0:01:22.1]} 24. Rfb1 {[%clk 0:02:13.8]} 24... Qc6 {[%clk 0:01:07.9]} 25.
f5 {[%clk 0:02:08.1]} 25... Ba6 {[%clk 0:00:24.3]} 26. Rc1 {[%clk 0:02:01.7]}
26... Rxd3 {[%clk 0:00:16.8]} 27. Qh6 {[%clk 0:01:38]} 27... Qb5 {[%clk
0:00:12.8]} 28. Rg1 {[%clk 0:01:15.9]} 28... Qb2+ {[%clk 0:00:11.5]} 29. Rg2
{[%clk 0:01:15.9]} 29... Qxd4 {[%clk 0:00:10.6]} 30. Re1 {[%clk 0:01:14.2]}
30... exf5 {[%clk 0:00:06.4]} 31. gxf5 {[%clk 0:01:13]} 31... Rxh3+ {[%clk
0:00:03.1]} 32. Kxh3 {[%clk 0:01:10]} 32... Bd3 {[%clk 0:00:03.7]} 33. f6 {[%clk
0:01:04.8]} 33... Bf5+ {[%clk 0:00:03.7]} 34. Kh2 {[%clk 0:01:05.1]} 1-0

[Event "Late-Titled-Tuesday-Blitz-October-24-2023"]
[Site "Chess.com"]
[Date "2023.10.24"]
[Round "2"]
[White "MikaelyanArman"]
[Black "aa175"]
[Result "1-0"]
[WhiteElo "2913"]
[BlackElo "2599"]
[TimeControl "180+1"]
[EndTime "14:18:08 PDT"]
[Termination "MikaelyanArman won on time"]

1. Nf3 {[%clk 0:03:00.9]} 1... d5 {[%clk 0:03:00.1]} 2. d4 {[%clk 0:02:59.4]}
2... Bf5 {[%clk 0:03:00.2]} 3. Bf4 {[%clk 0:02:58.6]} 3... e6 {[%clk 0:03:00.6]}
4. e3 {[%clk 0:02:59.1]} 4... Bd6 {[%clk 0:03:00.6]} 5. Bxd6 {[%clk 0:02:57.1]}
5... cxd6 {[%clk 0:03:01.5]} 6. Bd3 {[%clk 0:02:50.4]} 6... Bxd3 {[%clk
0:02:44.3]} 7. Qxd3 {[%clk 0:02:51.3]} 7... Nc6 {[%clk 0:02:44.6]} 8. O-O {[%clk
0:02:50.9]} 8... Nge7 {[%clk 0:02:41.9]} 9. c3 {[%clk 0:02:48.4]} 9... O-O
{[%clk 0:02:41.2]} 10. Nbd2 {[%clk 0:02:48.9]} 10... f5 {[%clk 0:02:40.6]} 11.
c4 {[%clk 0:02:44.1]} 11... Kh8 {[%clk 0:02:37.5]} 12. Rac1 {[%clk 0:02:42]}
12... Qb6 {[%clk 0:02:35.5]} 13. cxd5 {[%clk 0:02:39.4]} 13... Nb4 {[%clk
0:02:30.4]} 14. Qa3 {[%clk 0:02:35.7]} 14... exd5 {[%clk 0:02:24.9]} 15. Rc3
{[%clk 0:02:26.1]} 15... Rac8 {[%clk 0:02:07.3]} 16. Rfc1 {[%clk 0:02:25.7]}
16... h6 {[%clk 0:02:01.7]} 17. Qa4 {[%clk 0:02:12.6]} 17... Nd3 {[%clk
0:01:55.4]} 18. Rxc8 {[%clk 0:02:09.8]} 18... Nxc8 {[%clk 0:01:47.8]} 19. Rc3
{[%clk 0:02:06.4]} 19... Nxb2 {[%clk 0:01:41.3]} 20. Qd7 {[%clk 0:02:04.9]}
20... Nc4 {[%clk 0:01:39.1]} 21. h4 {[%clk 0:01:56.4]} 21... Qb2 {[%clk
0:01:32]} 22. Rb3 {[%clk 0:01:40.9]} 22... Qa1+ {[%clk 0:01:04.5]} 23. Kh2
{[%clk 0:01:36.5]} 23... Nxd2 {[%clk 0:00:43.5]} 24. Nxd2 {[%clk 0:01:37.4]}
24... Qxa2 {[%clk 0:00:41.7]} 25. Rxb7 {[%clk 0:01:34.6]} 25... Rg8 {[%clk
0:00:42.3]} 26. Nf3 {[%clk 0:01:32.6]} 26... Qxf2 {[%clk 0:00:39.1]} 27. Qe6
{[%clk 0:01:13.1]} 27... a5 {[%clk 0:00:24.8]} 28. Rb8 {[%clk 0:01:11.5]} 28...
Qc2 {[%clk 0:00:20.2]} 29. h5 {[%clk 0:01:08]} 29... Ne7 {[%clk 0:00:07.2]} 30.
Rb7 {[%clk 0:01:03.9]} 30... Qe4 {[%clk 0:00:05.5]} 31. Rxe7 {[%clk 0:01:01.3]}
31... a4 {[%clk 0:00:02.1]} 32. Qxd6 {[%clk 0:00:52.6]} 32... Qg4 {[%clk
0:00:02.2]} 33. Qg6 {[%clk 0:00:47.6]} 33... a3 {[%clk 0:00:01.3]} 34. Ra7
{[%clk 0:00:44.7]} 1-0

[Event "Late-Titled-Tuesday-Blitz-October-24-2023"]
[Site "Chess.com"]
[Date "2023.10.24"]
[Round "2"]
[White "maracayo"]
[Black "Eternauta2400"]
[Result "0-1"]
[WhiteElo "2369"]
[BlackElo "2725"]
[TimeControl "180+1"]
[EndTime "14:18:08 PDT"]
[Termination "Eternauta2400 won by resignation"]

1. e4 {[%clk 0:03:00.9]} 1... c5 {[%clk 0:03:00]} 2. Nf3 {[%clk 0:03:00.3]} 2...
Nc6 {[%clk 0:02:59.4]} 3. Bb5 {[%clk 0:03:00.1]} 3... g6 {[%clk 0:02:57.4]} 4.
O-O {[%clk 0:02:59.7]} 4... Bg7 {[%clk 0:02:57.4]} 5. Re1 {[%clk 0:02:58.8]}
5... e5 {[%clk 0:02:51.4]} 6. Bxc6 {[%clk 0:02:51.7]} 6... dxc6 {[%clk
0:02:52.3]} 7. d3 {[%clk 0:02:50.2]} 7... Qc7 {[%clk 0:02:51.9]} 8. a4 {[%clk
0:02:49.3]} 8... a5 {[%clk 0:02:51.7]} 9. c3 {[%clk 0:02:40.9]} 9... Nf6 {[%clk
0:02:47.6]} 10. d4 {[%clk 0:02:36.1]} 10... cxd4 {[%clk 0:02:47]} 11. cxd4
{[%clk 0:02:36.2]} 11... exd4 {[%clk 0:02:47.3]} 12. e5 {[%clk 0:02:36]} 12...
Nd5 {[%clk 0:02:45.3]} 13. Qxd4 {[%clk 0:02:34.3]} 13... O-O {[%clk 0:02:44.8]}
14. Nc3 {[%clk 0:02:31.8]} 14... Nb4 {[%clk 0:02:42.8]} 15. Qh4 {[%clk
0:02:25.4]} 15... h5 {[%clk 0:02:07.5]} 16. Bf4 {[%clk 0:02:06.9]} 16... Nd3
{[%clk 0:01:53.4]} 17. Re3 {[%clk 0:01:59]} 17... Nxf4 {[%clk 0:01:48.3]} 18.
Qxf4 {[%clk 0:01:57.7]} 18... Bf5 {[%clk 0:01:43.9]} 19. Nh4 {[%clk 0:01:48.7]}
19... Be6 {[%clk 0:01:43]} 20. Nf3 {[%clk 0:01:40.4]} 20... Rad8 {[%clk
0:01:31.5]} 21. Rae1 {[%clk 0:01:27.7]} 21... Rfe8 {[%clk 0:01:28.8]} 22. Ne4
{[%clk 0:01:22.1]} 22... Bf5 {[%clk 0:01:24.6]} 23. Ng3 {[%clk 0:01:07.2]} 23...
Bg4 {[%clk 0:01:23.3]} 24. Qg5 {[%clk 0:00:42.6]} 24... Bxf3 {[%clk 0:01:16.6]}
25. gxf3 {[%clk 0:00:42.1]} 25... Qe7 {[%clk 0:01:05.2]} 26. Qxe7 {[%clk
0:00:41.3]} 26... Rxe7 {[%clk 0:01:06.1]} 27. f4 {[%clk 0:00:41.8]} 27... Rd2
{[%clk 0:01:03]} 28. Rb3 {[%clk 0:00:35.6]} 28... Rd5 {[%clk 0:00:57.3]} 29. Ne4
{[%clk 0:00:33.1]} 29... Rd4 {[%clk 0:00:51.4]} 30. Kg2 {[%clk 0:00:32.7]} 30...
Rxa4 {[%clk 0:00:47.7]} 31. Nc5 {[%clk 0:00:29.6]} 31... Rxf4 {[%clk 0:00:47.5]}
32. Rxb7 {[%clk 0:00:22.9]} 32... Rxe5 {[%clk 0:00:45.3]} 33. Rb8+ {[%clk
0:00:17.5]} 33... Kh7 {[%clk 0:00:44.5]} 34. Rxe5 {[%clk 0:00:18.4]} 34... Bxe5
{[%clk 0:00:45]} 35. Nd3 {[%clk 0:00:17.5]} 35... Rg4+ {[%clk 0:00:44.4]} 36.
Kf3 {[%clk 0:00:16]} 36... Bxb8 {[%clk 0:00:44.4]} 0-1

[Event "Late-Titled-Tuesday-Blitz-October-24-2023"]
[Site "Chess.com"]
[Date "2023.10.24"]
[Round "2"]
[White "2346PL"]
[Black "campochess"]
[Result "1-0"]
[WhiteElo "2482"]
[BlackElo "2203"]
[TimeControl "180+1"]
[EndTime "14:18:08 PDT"]
[Termination "2346PL won by resignation"]

1. d4 {[%clk 0:02:58.1]} 1... c5 {[%clk 0:02:59.6]} 2. d5 {[%clk 0:02:57.1]}
2... Nf6 {[%clk 0:02:58.6]} 3. Nc3 {[%clk 0:02:56.5]} 3... g6 {[%clk 0:02:58.7]}
4. e4 {[%clk 0:02:56.6]} 4... d6 {[%clk 0:02:58.8]} 5. f4 {[%clk 0:02:56.5]}
5... Bg7 {[%clk 0:02:58.2]} 6. Nf3 {[%clk 0:02:56.9]} 6... O-O {[%clk
0:02:57.1]} 7. a4 {[%clk 0:02:56.5]} 7... a6 {[%clk 0:02:56.1]} 8. Bc4 {[%clk
0:02:52.3]} 8... Ng4 {[%clk 0:02:50.8]} 9. O-O {[%clk 0:02:51.2]} 9... f5 {[%clk
0:02:50.4]} 10. Ng5 {[%clk 0:02:43]} 10... fxe4 {[%clk 0:02:42.1]} 11. Ncxe4
{[%clk 0:02:40.8]} 11... Nf6 {[%clk 0:02:40.2]} 12. Qe2 {[%clk 0:02:38.8]} 12...
h6 {[%clk 0:02:21.5]} 13. Ne6 {[%clk 0:02:32.9]} 13... Bxe6 {[%clk 0:02:19.6]}
14. dxe6 {[%clk 0:02:33.8]} 14... d5 {[%clk 0:02:18.4]} 15. Nxf6+ {[%clk
0:02:33.5]} 15... Bxf6 {[%clk 0:02:17.3]} 16. Bd3 {[%clk 0:02:34.4]} 16... Kg7
{[%clk 0:02:13.3]} 17. Qg4 {[%clk 0:02:26.7]} 17... Qe8 {[%clk 0:02:12.6]} 18.
c4 {[%clk 0:02:25.4]} 18... dxc4 {[%clk 0:02:07.6]} 19. Be4 {[%clk 0:02:21]}
19... Nc6 {[%clk 0:02:06.8]} 20. f5 {[%clk 0:02:20.1]} 20... g5 {[%clk
0:02:05.1]} 21. Bxc6 {[%clk 0:02:19.6]} 21... Qxc6 {[%clk 0:02:03.3]} 22. Qxc4
{[%clk 0:02:17.5]} 22... Rad8 {[%clk 0:02:00.8]} 23. Ra3 {[%clk 0:02:15.5]}
23... Rd4 {[%clk 0:02:00.4]} 24. Qc2 {[%clk 0:02:14.9]} 24... Rfd8 {[%clk
0:01:53]} 25. Be3 {[%clk 0:02:12.9]} 25... Qe4 {[%clk 0:01:44.9]} 26. Qxe4
{[%clk 0:02:10.3]} 26... Rxe4 {[%clk 0:01:44.5]} 27. Bxc5 {[%clk 0:02:11.2]}
27... Rd2 {[%clk 0:01:40.8]} 28. b4 {[%clk 0:01:38.6]} 28... Ree2 {[%clk
0:01:39.2]} 29. Rg3 {[%clk 0:01:36.5]} 29... h5 {[%clk 0:01:30.5]} 30. Rf2
{[%clk 0:01:23.7]} 30... Rd1+ {[%clk 0:01:28.3]} 31. Rf1 {[%clk 0:01:24]} 31...
Rdd2 {[%clk 0:01:27.9]} 32. h3 {[%clk 0:01:15.8]} 32... Kh6 {[%clk 0:01:11.5]}
33. h4 {[%clk 0:01:11.5]} 33... Re4 {[%clk 0:01:04.1]} 34. Be3 {[%clk
0:01:08.4]} 34... Rxe3 {[%clk 0:01:00.4]} 35. Rxe3 {[%clk 0:01:08.6]} 35... Bd4
{[%clk 0:00:59.8]} 36. Re1 {[%clk 0:01:08.4]} 36... g4 {[%clk 0:00:37]} 37. f6
{[%clk 0:01:05.5]} 37... g3 {[%clk 0:00:29.3]} 38. fxe7 {[%clk 0:01:03.2]} 38...
Bxe3+ {[%clk 0:00:28.6]} 39. Kh1 {[%clk 0:01:02.5]} 39... Bf2 {[%clk 0:00:23.6]}
40. e8=Q {[%clk 0:00:58.4]} 40... Rd4 {[%clk 0:00:21]} 41. Qf8+ {[%clk
0:00:57.4]} 41... Kh7 {[%clk 0:00:19.3]} 42. Qf7+ {[%clk 0:00:57.4]} 42... Kh6
{[%clk 0:00:19.1]} 43. Qf6+ {[%clk 0:00:57.5]} 43... Kh7 {[%clk 0:00:19.1]} 44.
Qxd4 {[%clk 0:00:57.6]} 44... Bxd4 {[%clk 0:00:18.1]} 45. e7 {[%clk 0:00:58.1]}
1-0

[Event "Late-Titled-Tuesday-Blitz-October-24-2023"]
[Site "Chess.com"]
[Date "2023.10.24"]
[Round "2"]
[White "ATM622"]
[Black "taleslascando"]
[Result "1-0"]
[WhiteElo "2415"]
[BlackElo "1999"]
[TimeControl "180+1"]
[EndTime "14:18:09 PDT"]
[Termination "ATM622 won on time"]

1. d4 {[%clk 0:03:00.9]} 1... Nf6 {[%clk 0:02:59.5]} 2. c4 {[%clk 0:03:00.5]}
2... g6 {[%clk 0:02:59.8]} 3. g3 {[%clk 0:03:00.3]} 3... Bg7 {[%clk 0:02:59.9]}
4. Bg2 {[%clk 0:03:00.8]} 4... d6 {[%clk 0:02:59.1]} 5. Nf3 {[%clk 0:03:01.2]}
5... O-O {[%clk 0:02:59.1]} 6. O-O {[%clk 0:03:01.6]} 6... Nc6 {[%clk
0:02:55.8]} 7. Nc3 {[%clk 0:03:01.9]} 7... a6 {[%clk 0:02:55.3]} 8. Qc2 {[%clk
0:02:58.5]} 8... Rb8 {[%clk 0:02:54.7]} 9. Rd1 {[%clk 0:02:53.7]} 9... b5 {[%clk
0:02:41.3]} 10. cxb5 {[%clk 0:02:53.5]} 10... axb5 {[%clk 0:02:41.1]} 11. Nxb5
{[%clk 0:02:53.4]} 11... Rxb5 {[%clk 0:02:40.9]} 12. Qxc6 {[%clk 0:02:53.4]}
12... Bd7 {[%clk 0:02:40.5]} 13. Qc2 {[%clk 0:02:53]} 13... c5 {[%clk
0:02:40.6]} 14. a4 {[%clk 0:02:50.7]} 14... Ra5 {[%clk 0:02:40.5]} 15. Bd2
{[%clk 0:02:50]} 15... Ra7 {[%clk 0:02:28]} 16. dxc5 {[%clk 0:02:50.2]} 16...
dxc5 {[%clk 0:02:28.4]} 17. Qxc5 {[%clk 0:02:49.3]} 17... Rxa4 {[%clk
0:02:14.6]} 18. Ba5 {[%clk 0:02:42.7]} 18... Rxa1 {[%clk 0:02:01.2]} 19. Rxa1
{[%clk 0:02:43.6]} 19... Qb8 {[%clk 0:01:50.2]} 20. Qb6 {[%clk 0:02:38.4]} 20...
Nd5 {[%clk 0:01:31.4]} 21. Qxb8 {[%clk 0:02:32.6]} 21... Rxb8 {[%clk 0:01:29.3]}
22. e4 {[%clk 0:02:28.5]} 22... Bxb2 {[%clk 0:01:06.6]} 23. Rd1 {[%clk
0:02:25.1]} 23... Nf6 {[%clk 0:01:05.8]} 24. e5 {[%clk 0:02:10.2]} 24... Ba4
{[%clk 0:01:04.1]} 25. Rb1 {[%clk 0:01:52.9]} 25... Bxe5 {[%clk 0:00:51.1]} 26.
Rxb8+ {[%clk 0:01:47.4]} 26... Bxb8 {[%clk 0:00:50.6]} 27. Bb4 {[%clk
0:01:47.9]} 27... Nd5 {[%clk 0:00:36.3]} 28. Ba3 {[%clk 0:01:47.9]} 28... e6
{[%clk 0:00:33.1]} 29. h4 {[%clk 0:01:43.3]} 29... Ba7 {[%clk 0:00:15.6]} 30.
Bf1 {[%clk 0:01:41.6]} 30... Kg7 {[%clk 0:00:14.5]} 31. Bb2+ {[%clk 0:01:39.9]}
31... f6 {[%clk 0:00:13.8]} 32. Ng5 {[%clk 0:01:40]} 32... Bd7 {[%clk
0:00:11.9]} 33. Bh3 {[%clk 0:01:36.6]} 33... Nc7 {[%clk 0:00:07.7]} 34. Bg4
{[%clk 0:01:09.6]} 34... h6 {[%clk 0:00:05.7]} 35. Nf3 {[%clk 0:01:09.4]} 35...
Kf7 {[%clk 0:00:04.4]} 36. Nd2 {[%clk 0:01:02.1]} 36... f5 {[%clk 0:00:04.1]}
37. Be2 {[%clk 0:01:01.6]} 37... Nd5 {[%clk 0:00:03.7]} 38. Nc4 {[%clk
0:01:00.6]} 1-0

[Event "Late-Titled-Tuesday-Blitz-October-24-2023"]
[Site "Chess.com"]
[Date "2023.10.24"]
[Round "2"]
[White "jimis98"]
[Black "chesspreceptor"]
[Result "0-1"]
[WhiteElo "2760"]
[BlackElo "2588"]
[TimeControl "180+1"]
[EndTime "14:18:11 PDT"]
[Termination "chesspreceptor won by checkmate"]

1. d4 {[%clk 0:03:00.9]} 1... c5 {[%clk 0:02:58.2]} 2. d5 {[%clk 0:02:59.2]}
2... f5 {[%clk 0:02:57.7]} 3. Nc3 {[%clk 0:02:57.8]} 3... Nf6 {[%clk 0:02:57.3]}
4. Nf3 {[%clk 0:02:49.8]} 4... g6 {[%clk 0:02:56.6]} 5. Bf4 {[%clk 0:02:34.3]}
5... d6 {[%clk 0:02:54.8]} 6. g3 {[%clk 0:02:29.8]} 6... Bg7 {[%clk 0:02:53.5]}
7. Bg2 {[%clk 0:02:29.8]} 7... O-O {[%clk 0:02:54.1]} 8. O-O {[%clk 0:02:29.3]}
8... Na6 {[%clk 0:02:54.2]} 9. Ng5 {[%clk 0:02:29.1]} 9... Nc7 {[%clk
0:02:54.3]} 10. e4 {[%clk 0:02:27.6]} 10... h6 {[%clk 0:02:53.4]} 11. Ne6 {[%clk
0:02:23.1]} 11... Nxe6 {[%clk 0:02:52.5]} 12. dxe6 {[%clk 0:02:24]} 12... Bxe6
{[%clk 0:02:50.7]} 13. e5 {[%clk 0:02:19.2]} 13... Nh5 {[%clk 0:02:38.8]} 14.
exd6 {[%clk 0:02:03.9]} 14... Nxf4 {[%clk 0:02:39]} 15. dxe7 {[%clk 0:01:56.9]}
15... Qxe7 {[%clk 0:02:39.9]} 16. gxf4 {[%clk 0:01:57.3]} 16... Rad8 {[%clk
0:02:37.3]} 17. Qf3 {[%clk 0:01:57.2]} 17... b6 {[%clk 0:02:35.1]} 18. Rfe1
{[%clk 0:01:44]} 18... Qf6 {[%clk 0:02:32.3]} 19. Qc6 {[%clk 0:01:39.8]} 19...
Bf7 {[%clk 0:02:29.4]} 20. Qc7 {[%clk 0:01:35.1]} 20... Rd2 {[%clk 0:02:23.5]}
21. Qxa7 {[%clk 0:01:16.5]} 21... Qh4 {[%clk 0:02:16.7]} 22. Rf1 {[%clk
0:01:11]} 22... Qxf4 {[%clk 0:02:15.5]} 23. Rae1 {[%clk 0:01:04.1]} 23... Be5
{[%clk 0:01:59.5]} 24. Rxe5 {[%clk 0:00:55.5]} 24... Qxe5 {[%clk 0:02:00.4]} 25.
Qxb6 {[%clk 0:00:54.4]} 25... Bc4 {[%clk 0:01:59.9]} 26. Qxg6+ {[%clk
0:00:53.5]} 26... Qg7 {[%clk 0:01:56.4]} 27. Qxg7+ {[%clk 0:00:53.1]} 27... Kxg7
{[%clk 0:01:57.3]} 28. Rc1 {[%clk 0:00:53.1]} 28... Rb8 {[%clk 0:01:49.3]} 29.
b3 {[%clk 0:00:53.3]} 29... Be6 {[%clk 0:01:47.1]} 30. a4 {[%clk 0:00:47.9]}
30... Kf6 {[%clk 0:01:41.7]} 31. a5 {[%clk 0:00:45.6]} 31... Rg8 {[%clk
0:01:41.9]} 32. Kf1 {[%clk 0:00:20.2]} 32... Bc8 {[%clk 0:01:41.7]} 33. Nd5+
{[%clk 0:00:14.6]} 33... Ke5 {[%clk 0:01:33.9]} 34. Ne3 {[%clk 0:00:10.2]} 34...
Ba6+ {[%clk 0:01:30.7]} 35. c4 {[%clk 0:00:09.5]} 35... f4 {[%clk 0:01:28.6]}
36. Nd5 {[%clk 0:00:08.4]} 36... Kd4 {[%clk 0:01:12.1]} 37. Nc7 {[%clk
0:00:02.9]} 37... Bc8 {[%clk 0:01:08.4]} 38. a6 {[%clk 0:00:03.3]} 38... f3
{[%clk 0:01:08.3]} 39. Bxf3 {[%clk 0:00:02.4]} 39... Bh3+ {[%clk 0:01:07.7]} 40.
Ke1 {[%clk 0:00:02.9]} 40... Rb2 {[%clk 0:01:04.8]} 41. a7 {[%clk 0:00:01.4]}
41... Rg1# {[%clk 0:01:04.2]} 0-1

[Event "Late-Titled-Tuesday-Blitz-October-24-2023"]
[Site "Chess.com"]
[Date "2023.10.24"]
[Round "2"]
[White "Eloist"]
[Black "Darko-Dimitrijevic"]
[Result "1-0"]
[WhiteElo "2448"]
[BlackElo "2125"]
[TimeControl "180+1"]
[EndTime "14:18:12 PDT"]
[Termination "Eloist won by resignation"]

1. e4 {[%clk 0:02:54.7]} 1... d6 {[%clk 0:02:57.7]} 2. d4 {[%clk 0:02:54]} 2...
Nf6 {[%clk 0:02:57.3]} 3. Nc3 {[%clk 0:02:54.2]} 3... c6 {[%clk 0:02:56.5]} 4.
f4 {[%clk 0:02:54]} 4... Qa5 {[%clk 0:02:48.8]} 5. Bd3 {[%clk 0:02:48.9]} 5...
e5 {[%clk 0:02:48.7]} 6. Nf3 {[%clk 0:02:48.2]} 6... Nbd7 {[%clk 0:02:46.1]} 7.
Be3 {[%clk 0:02:41.9]} 7... Be7 {[%clk 0:02:36.4]} 8. h3 {[%clk 0:02:40.8]} 8...
O-O {[%clk 0:02:31.9]} 9. O-O {[%clk 0:02:40.5]} 9... Qc7 {[%clk 0:02:19.8]} 10.
a4 {[%clk 0:02:37.9]} 10... b6 {[%clk 0:02:15.2]} 11. Qd2 {[%clk 0:02:23.9]}
11... Bb7 {[%clk 0:02:14.1]} 12. Rae1 {[%clk 0:02:22.2]} 12... Rfd8 {[%clk
0:02:11]} 13. fxe5 {[%clk 0:02:15.8]} 13... dxe5 {[%clk 0:02:10.4]} 14. dxe5
{[%clk 0:02:14.4]} 14... Nxe5 {[%clk 0:02:08.7]} 15. Nxe5 {[%clk 0:02:12.4]}
15... Qxe5 {[%clk 0:02:07.8]} 16. Bf4 {[%clk 0:02:12.3]} 16... Qc5+ {[%clk
0:02:03.3]} 17. Kh1 {[%clk 0:02:12.1]} 17... Ba6 {[%clk 0:01:49.3]} 18. e5
{[%clk 0:02:10]} 18... Bxd3 {[%clk 0:01:48.4]} 19. cxd3 {[%clk 0:02:07]} 19...
Nd5 {[%clk 0:01:46.3]} 20. Bg5 {[%clk 0:02:01.3]} 20... Nxc3 {[%clk 0:01:43]}
21. Bxe7 {[%clk 0:01:56.2]} 21... Qxe7 {[%clk 0:01:24.2]} 22. bxc3 {[%clk
0:01:56]} 22... Qe6 {[%clk 0:01:18.7]} 23. d4 {[%clk 0:01:54.2]} 23... c5 {[%clk
0:01:18]} 24. Re4 {[%clk 0:01:39.1]} 24... cxd4 {[%clk 0:01:17.6]} 25. cxd4
{[%clk 0:01:39.2]} 25... Rac8 {[%clk 0:01:16.7]} 26. Ref4 {[%clk 0:01:37.3]}
26... Rc7 {[%clk 0:01:14.2]} 27. Qf2 {[%clk 0:01:30.3]} 27... Qc4 {[%clk
0:01:04.3]} 28. Qf3 {[%clk 0:01:15.1]} 28... g6 {[%clk 0:00:54.8]} 29. Qe4
{[%clk 0:00:43]} 29... a5 {[%clk 0:00:52]} 30. Kh2 {[%clk 0:00:30.7]} 30... Qxa4
{[%clk 0:00:48.9]} 31. e6 {[%clk 0:00:30.7]} 31... f5 {[%clk 0:00:39.6]} 32. e7
{[%clk 0:00:27.8]} 32... Re8 {[%clk 0:00:35.7]} 33. Qe6+ {[%clk 0:00:27.3]}
33... Kg7 {[%clk 0:00:35.1]} 34. Qe5+ {[%clk 0:00:27]} 34... Kg8 {[%clk
0:00:33.2]} 35. Qxc7 {[%clk 0:00:27]} 1-0